bitfinex-derivatives/quotes_ETHF0:USTF0_20260113
["timestamp","ask_amount","ask_price","bid_price","bid_amount"]
[1768297551967,1.45555061,3136.1,3134.7,1.71740711]
[1768297552264,1.45555061,3136.0,3134.7,1.71740711]
[1768297552467,1.45555061,3135.9,3134.7,1.71740711]
[1768297552667,1.45555061,3135.8,3134.7,1.71740711]
[1768297552868,1.45555061,3135.7,3134.7,1.71740711]
[1768297553070,0.99500517,3135.6,3134.7,1.71740711]
[1768297553256,1.08988032,3136.2,3134.7,1.71740711]
[1768297553461,1.45581967,3136.1,3134.7,1.71740711]
[1768297553770,1.45581142,3136.0,3134.7,1.71740711]
[1768297553960,1.45581142,3135.9,3134.7,1.71740711]
[1768297554160,1.45581142,3135.8,3134.7,1.71740711]
[1768297554461,1.45581142,3135.7,3134.7,1.71740711]
[1768297554766,0.99518958,3135.6,3134.7,1.71740711]
[1768297554965,0.99518958,3135.5,3134.7,1.71740711]
[1768297555269,1.08988032,3136.2,3134.7,1.71740711]
[1768297555466,1.4557627,3136.1,3134.7,1.71740711]
[1768297555667,1.4557627,3136.0,3134.7,1.71740711]
[1768297555863,1.4557627,3135.9,3134.7,1.71740711]
[1768297556062,1.4557627,3135.8,3134.7,1.71740711]
[1768297556267,1.08988032,3136.2,3134.7,1.71740711]
[1768297556268,1.4557627,3135.7,3134.7,1.71740711]
[1768297556468,1.45566172,3135.6,3134.7,1.71740711]
[1768297556669,0.99515994,3135.5,3134.7,1.71740711]
[1768297556866,1.08988032,3136.2,3134.7,1.71740711]
[1768297557070,1.45544143,3136.1,3134.7,1.71740711]
[1768297557271,1.45544143,3136.0,3134.7,1.71740711]
[1768297557472,2.54223494,3135.9,3134.7,1.71740711]
[1768297557672,1.45544143,3135.8,3134.7,1.71740711]
[1768297557878,1.45544143,3135.7,3134.7,1.71740711]
[1768297558069,1.45544143,3135.6,3134.7,1.71740711]
[1768297558269,0.99494026,3135.5,3134.7,1.71740711]
[1768297558475,1.08679351,3135.9,3134.7,1.71740711]
[1768297558676,1.45543178,3135.8,3134.7,1.71740711]
[1768297558874,1.45543178,3135.7,3134.7,1.71740711]
[1768297559073,1.45543178,3135.6,3134.7,1.71740711]
[1768297559276,0.9949364,3135.5,3134.7,1.71740711]
[1768297559477,1.08988032,3136.2,3134.7,1.71740711]
[1768297559779,1.45558156,3136.1,3134.7,1.71740711]
[1768297559978,1.45558156,3136.0,3134.7,1.71740711]
[1768297560171,1.45558156,3135.9,3134.7,1.71740711]
[1768297560373,1.45558156,3135.8,3134.7,1.71740711]
[1768297560571,1.45558156,3135.7,3134.7,1.71740711]
[1768297560778,1.45558156,3135.6,3134.7,1.71740711]
[1768297561078,0.99503778,3135.5,3134.8,1.71740711]
[1768297561382,1.08988032,3136.2,3134.8,1.71740711]
[1768297561582,1.45557006,3136.1,3134.8,1.71740711]
[1768297561779,1.45557006,3136.0,3134.8,1.71740711]
[1768297562077,1.45557006,3135.9,3134.8,1.71740711]
[1768297562277,1.45557006,3135.8,3134.8,1.71740711]
[1768297562578,1.45557006,3135.7,3134.8,1.71740711]
[1768297562881,0.99502808,3135.6,3134.8,1.71740711]
[1768297563080,0.00308681,3136.2,3134.8,1.71740711]
[1768297563277,1.45458526,3136.1,3134.8,1.71740711]
[1768297563483,1.08656316,3135.9,3135.0,1.08656316]
[1768297563671,1.45458526,3135.8,3135.0,2.80397027]
[1768297563875,1.45458526,3135.7,3135.0,2.80397027]
[1768297564175,0.99574057,3135.6,3135.0,2.80397027]
[1768297564376,1.08656316,3135.9,3135.1,1.71740711]
[1768297564576,1.45673183,3135.8,3135.1,1.71740711]
[1768297564777,1.45673183,3135.7,3135.1,1.71740711]
[1768297564976,0.99790319,3135.6,3135.1,1.71740711]
[1768297565171,1.08656316,3135.9,3135.1,1.71740711]
[1768297565377,1.45673504,3135.8,3135.1,1.71740711]
[1768297565582,1.45673504,3135.7,3135.1,1.71740711]
[1768297565786,0.9979088,3135.6,3135.1,1.71740711]
[1768297565986,1.08656316,3135.9,3135.1,1.71740711]
[1768297566182,1.45672748,3135.8,3135.1,1.71740711]
[1768297566382,1.45672748,3135.7,3135.1,1.71740711]
[1768297566574,0.99790421,3135.6,3135.1,1.71740711]
[1768297566779,1.08656316,3135.9,3135.1,1.71740711]
[1768297566979,1.4562915,3135.8,3135.1,1.71740711]
[1768297567175,1.4562915,3135.7,3135.1,1.71740711]
[1768297567384,0.99760826,3135.6,3135.1,1.71740711]
[1768297567584,1.08656316,3135.9,3135.1,1.71740711]
[1768297567776,1.45617027,3135.8,3135.1,1.71740711]
[1768297567980,1.45617027,3135.7,3135.1,1.71740711]
[1768297568188,0.99753744,3135.6,3135.1,1.71740711]
[1768297568488,1.08656316,3136.0,3135.1,2.80397027]
[1768297568689,1.45617534,3135.9,3135.1,2.80397027]
[1768297568986,1.45617534,3135.8,3135.1,2.80397027]
[1768297569187,1.45617534,3135.7,3135.1,2.80397027]
[1768297569388,0.99754637,3135.6,3135.1,2.80397027]
[1768297569587,1.08656316,3136.0,3135.1,2.80397027]
[1768297569789,2.54271901,3135.9,3135.1,2.80397027]
[1768297569988,1.45615585,3135.8,3135.1,2.80397027]
[1768297570189,1.45615585,3135.7,3135.1,2.80397027]
[1768297570391,0.99752717,3135.6,3135.1,2.80397027]
[1768297570581,0.00308681,3136.2,3135.3,1.08656316]
[1768297570786,1.45620979,3136.1,3135.5,1.08656316]
[1768297570986,1.45620979,3136.0,3135.5,1.08656316]
[1768297571186,0.00308681,3136.2,3135.5,1.08656316]
[1768297573597,0.00308681,3136.2,3135.7,2.83995414]
[1768297573796,1.08656316,3136.8,3135.9,1.08656316]
[1768297573996,1.08656316,3136.8,3135.7,2.83995414]
[1768297574294,1.08656316,3136.6,3135.7,2.83995414]
[1768297574688,0.00383901,3136.6,3135.7,2.83995414]
[1768297575284,0.00383901,3136.6,3135.8,1.82210374]
[1768297575488,0.00383901,3136.6,3136.3,1.08656316]
[1768297575690,0.00383901,3136.6,3136.3,1.08932765]
[1768297576002,1.08656316,3137.3,3136.3,1.08932765]
[1768297576003,1.08656316,3137.3,3136.3,0.00276449]
[1768297576189,1.08656316,3137.1,3136.3,0.00276449]
[1768297576692,1.08656316,3136.7,3136.3,0.00276449]
[1768297576996,1.08656316,3136.3,3135.4,1.82210374]
[1768297577793,1.08995985,3136.3,3135.4,1.82595788]
[1768297579195,1.08995985,3136.3,3135.5,1.08656316]
[1768297579793,1.08995985,3136.3,3135.4,1.82595788]
[1768297580093,1.08995985,3136.3,3135.4,2.91252104]
[1768297580596,0.00339669,3136.3,3135.8,1.08656316]
[1768297582796,0.00339669,3136.3,3135.7,1.08656316]
[1768297583789,1.08656316,3136.7,3135.9,1.08656316]
[1768297583989,1.08656316,3136.5,3135.5,1.08656316]
[1768297584790,1.08963415,3136.5,3135.5,1.08656316]
[1768297587403,1.08963415,3136.5,3135.5,2.9086669]
[1768297587599,0.00307099,3136.5,3135.7,1.08656316]
[1768297587798,0.00307099,3136.5,3135.9,1.08656316]
[1768297588001,0.00307099,3136.5,3135.7,2.9086669]
[1768297588902,0.00307099,3136.5,3135.9,1.08656316]
[1768297590101,0.00307099,3136.5,3135.6,1.08656316]
[1768297590506,0.00307099,3136.5,3135.4,1.82595788]
[1768297590697,0.00307099,3136.5,3135.6,1.08656316]
[1768297593206,0.00307099,3136.5,3135.8,1.08656316]
[1768297593598,0.99098029,3136.4,3135.8,1.08656316]
[1768297593904,0.00307099,3136.5,3135.8,1.08656316]
[1768297594105,0.99091967,3136.4,3135.8,1.08656316]
[1768297594299,0.00307099,3136.5,3135.8,1.08656316]
[1768297594499,0.99090846,3136.4,3135.8,1.08656316]
[1768297594701,0.00307099,3136.5,3135.8,1.08656316]
[1768297594900,0.99090772,3136.4,3135.8,1.08656316]
[1768297595106,0.00307099,3136.5,3135.8,1.08656316]
[1768297595307,0.99090782,3136.4,3135.8,1.08656316]
[1768297595509,1.08963415,3136.5,3135.8,1.08656316]
[1768297595709,0.99093422,3136.4,3135.8,1.08656316]
[1768297595911,0.00307099,3136.5,3135.8,1.08656316]
[1768297596110,0.99093492,3136.4,3135.8,1.08656316]
[1768297596311,0.00307099,3136.5,3135.8,1.08656316]
[1768297596610,0.99095818,3136.4,3135.8,1.08656316]
[1768297596810,0.00307099,3136.5,3135.8,1.08656316]
[1768297597012,0.9909567,3136.4,3135.8,1.08656316]
[1768297597215,0.00307099,3136.5,3135.8,1.08656316]
[1768297597412,0.99097651,3136.4,3135.8,1.08656316]
[1768297597606,0.00307099,3136.5,3135.8,1.08656316]
[1768297597803,0.99091022,3136.4,3135.8,1.08656316]
[1768297598013,0.00307099,3136.5,3135.8,1.08656316]
[1768297598213,0.99091122,3136.4,3135.8,1.08656316]
[1768297598414,0.00307099,3136.5,3135.8,1.08656316]
[1768297598715,0.99093691,3136.4,3135.8,1.08656316]
[1768297598910,1.08656316,3137.2,3136.2,1.08656316]
[1768297599108,1.44577296,3137.1,3136.0,1.81393222]
[1768297599415,2.53233612,3137.0,3136.0,2.90049538]
[1768297599607,1.44577296,3136.9,3136.0,2.90049538]
[1768297599805,1.44577296,3136.8,3136.0,2.90049538]
[1768297600013,0.99119911,3136.7,3136.0,2.90049538]
[1768297600216,0.99119911,3136.6,3136.0,2.90049538]
[1768297600515,0.00245797,3136.9,3136.0,2.90049538]
[1768297600810,1.44650131,3136.8,3136.2,1.08656316]
[1768297601114,0.00245797,3136.9,3136.4,1.08656316]
[1768297602012,0.00245797,3136.9,3136.2,2.90049538]
[1768297602515,0.00245797,3136.9,3136.2,1.08656316]
[1768297605218,0.00245797,3136.9,3136.4,1.08656316]
[1768297608343,0.00245797,3136.9,3135.8,1.81393222]
[1768297608530,1.08902113,3136.9,3135.8,1.81393222]
[1768297608833,1.08656316,3136.3,3135.4,2.90434952]
[1768297609030,1.08656316,3136.5,3135.6,1.08656316]
[1768297610637,1.08656316,3136.7,3135.8,1.08656316]
[1768297611035,2.87839195,3136.9,3136.0,1.08656316]
[1768297611228,7.43100748,3138.7,3136.8,2.17312632]
[1768297611430,1.78937082,3138.9,3137.4,1.08656316]
[1768297611633,1.78937082,3138.7,3137.7,1.08656316]
[1768297611838,2.87593398,3138.6,3136.9,4.437]
[1768297612135,1.78937082,3138.6,3136.9,4.437]
[1768297612334,1.7926254,3138.6,3137.0,4.501]
[1768297612931,1.7926254,3138.6,3137.9,1.08656316]
[1768297613341,1.7926254,3138.6,3137.4,1.08656316]
[1768297613739,1.7926254,3138.6,3137.7,1.08656316]
[1768297614835,1.7926254,3138.6,3137.9,1.08656316]
[1768297616842,0.00325458,3138.6,3137.9,1.08656316]
[1768297617943,0.00325458,3138.6,3138.1,1.08656316]
[1768297618339,0.00325458,3138.6,3137.4,1.24608316]
[1768297618540,0.00325458,3138.6,3137.8,1.08656316]
[1768297618748,1.7926254,3138.6,3137.8,1.08656316]
[1768297619245,1.7926254,3138.6,3137.5,4.499]
[1768297619436,1.7926254,3138.6,3137.8,1.08656316]
[1768297620343,1.7926254,3138.6,3138.0,1.08656316]
[1768297620650,0.00325458,3138.6,3138.2,1.08656316]
[1768297620848,0.00325458,3138.6,3138.4,1.08656316]
[1768297621537,1.78937082,3139.1,3138.4,1.08656316]
[1768297622136,1.78937082,3139.4,3138.0,1.08656316]
[1768297622341,2.87593398,3139.3,3138.4,1.08656316]
[1768297622539,2.87904762,3139.3,3138.4,1.08656316]
[1768297623048,1.78937082,3139.2,3138.4,1.08656316]
[1768297623240,0.00311364,3139.3,3138.0,1.08656316]
[1768297623435,0.00311364,3139.3,3138.8,1.08656316]
[1768297623840,0.00311364,3139.3,3138.0,1.08656316]
[1768297624041,1.0896768,3139.3,3138.5,1.08656316]
[1768297625053,0.00311364,3139.3,3138.5,1.08656316]
[1768297625354,0.00311364,3139.3,3138.3,2.39315831]
[1768297625740,2.10917004,3139.3,3138.3,1.08415831]
[1768297626141,0.00311364,3139.3,3138.9,1.08415831]
[1768297626341,0.00311364,3139.3,3138.6,1.08415831]
[1768297626637,0.00311364,3139.3,3138.4,1.309]
[1768297627046,0.00311364,3139.3,3138.4,2.39315831]
[1768297629349,0.00311364,3139.3,3138.4,1.08415831]
[1768297629552,0.00311364,3139.3,3138.5,1.309]
[1768297630549,0.00311364,3139.3,3138.7,1.08415831]
[1768297631652,0.00311364,3139.3,3138.7,2.39215831]
[1768297633456,1.07966391,3139.7,3139.0,1.08415831]
[1768297634048,1.07966391,3139.7,3138.7,1.308]
[1768297634451,1.08231744,3139.7,3138.7,1.308]
[1768297634953,1.08231744,3139.7,3139.0,1.08415831]
[1768297635549,1.08231744,3139.7,3138.7,1.308]
[1768297635853,1.08231744,3139.7,3138.8,1.08415831]
[1768297636057,1.08231744,3139.7,3138.7,2.39215831]
[1768297636352,1.08231744,3139.7,3138.7,1.308]
[1768297636652,1.08231744,3139.7,3138.8,2.39215831]
[1768297637045,1.08231744,3139.7,3138.8,1.308]
[1768297637251,1.08231744,3139.7,3138.6,1.08415831]
[1768297637252,1.08231744,3139.7,3138.7,1.08415831]
[1768297637448,1.08231744,3139.7,3138.9,1.308]
[1768297637652,2.12963159,3139.5,3138.5,1.308]
[1768297637853,2.12963159,3139.5,3138.1,1.08415831]
[1768297638050,1.08415831,3139.2,3137.4,1.08415831]
[1768297638357,2.12963159,3139.1,3137.5,1.308]
[1768297638556,2.12963159,3139.1,3137.4,1.08415831]
[1768297638758,2.12963159,3139.0,3137.4,2.39215831]
[1768297638951,2.12963159,3139.0,3137.4,1.08415831]
[1768297639146,2.12963159,3139.0,3137.4,2.39215831]
[1768297639955,2.12963159,3139.0,3137.0,0.15954]
[1768297640160,1.08415831,3139.2,3137.2,1.08415831]
[1768297640161,2.12963159,3138.7,3137.2,1.08415831]
[1768297640644,2.12963159,3138.7,3137.2,2.39215831]
[1768297641247,2.12963159,3138.7,3137.5,1.08415831]
[1768297644252,2.12963159,3139.2,3138.0,1.08415831]
[1768297644454,3.01525699,3139.1,3138.0,1.08415831]
[1768297644757,2.12963159,3139.1,3138.0,1.08415831]
[1768297644958,2.12963159,3139.6,3138.3,1.08415831]
[1768297645156,0.88583294,3139.5,3138.3,1.08415831]
[1768297645354,0.88583294,3139.4,3137.7,1.65874029]
[1768297645556,2.12963159,3139.5,3137.7,1.65874029]
[1768297645856,3.01547823,3139.4,3137.8,1.308]
[1768297646054,2.12963159,3139.4,3137.8,1.308]
[1768297646250,1.08231744,3139.7,3137.9,1.11238195]
[1768297646446,3.01559153,3139.6,3137.9,1.11238195]
[1768297646651,0.88595994,3139.5,3137.9,1.11238195]
[1768297647057,0.88595994,3139.5,3138.0,1.65874029]
[1768297647352,1.08231744,3139.7,3138.1,1.13418461]
[1768297650760,1.08231744,3139.7,3138.4,1.65874029]
[1768297652158,1.08231744,3139.7,3138.4,2.85182766]
[1768297652859,1.08231744,3139.7,3138.5,1.309]
[1768297655956,1.08231744,3139.7,3138.4,2.85182766]
[1768297656263,1.08231744,3139.7,3138.6,1.309]
[1768297657565,1.08231744,3139.7,3138.7,1.309]
[1768297657768,1.08231744,3139.7,3138.3,1.65874029]
[1768297658063,1.08231744,3139.7,3138.4,4.498]
[1768297658462,1.08231744,3139.7,3138.3,1.65874029]
[1768297658658,3.46254494,3139.7,3138.3,1.65874029]
[1768297658858,3.46254494,3139.7,3138.4,1.309]
[1768297659259,3.46254494,3139.7,3138.3,1.65874029]
[1768297659458,3.46254494,3139.7,3138.4,1.309]
[1768297661166,3.46254494,3139.7,3138.5,1.309]
[1768297662867,3.46254494,3139.7,3138.3,1.65874029]
[1768297663071,3.46254494,3139.7,3138.4,1.309]
[1768297664768,0.15936,3140.6,3138.4,1.309]
[1768297664966,3.195,3141.6,3138.8,2.39138691]
[1768297665166,1.65874029,3141.4,3138.9,4.497]
[1768297665370,0.88748365,3141.3,3138.9,4.497]
[1768297665566,0.88748365,3141.2,3138.9,4.497]
[1768297665762,0.88748365,3141.1,3138.9,4.497]
[1768297665964,0.88748365,3141.0,3138.9,4.497]
[1768297666270,0.88748365,3140.9,3138.9,4.497]
[1768297666459,0.88748365,3140.8,3138.9,4.497]
[1768297666662,0.00291629,3141.2,3138.6,0.15946]
[1768297666663,0.88748365,3140.7,3138.6,2.55084691]
[1768297666863,2.3802275,3140.9,3138.7,1.309]
[1768297667071,0.15934,3141.0,3138.7,1.309]
[1768297667072,2.3802275,3140.7,3138.7,1.309]
[1768297667370,2.3802275,3140.6,3139.2,1.08352385]
[1768297667571,2.3802275,3140.6,3139.2,1.08760944]
[1768297668571,2.3802275,3140.6,3139.5,1.08352385]
[1768297668765,2.3802275,3140.6,3139.2,1.08760944]
[1768297669874,2.3802275,3140.6,3139.3,1.08352385]
[1768297670772,2.3802275,3140.5,3139.3,1.08352385]
[1768297671477,2.3802275,3140.5,3139.2,0.00408559]
[1768297673973,2.3802275,3140.5,3139.3,1.08352385]
[1768297677673,3.27013416,3140.4,3139.2,0.00408559]
[1768297677880,2.3802275,3140.4,3139.2,0.00408559]
[1768297678073,2.3802275,3140.2,3139.2,0.00408559]
[1768297683082,2.3802275,3140.0,3139.2,0.00408559]
[1768297683282,1.08352385,3139.4,3138.4,2.84608978]
[1768297683488,1.08352385,3139.4,3137.9,9.73220239]
[1768297683489,1.08352385,3139.4,3137.9,6.85340518]
[1768297683795,2.3802275,3139.3,3137.9,1.308]
[1768297683990,2.3802275,3139.3,3138.1,1.08352385]
[1768297684389,2.3802275,3139.3,3138.1,1.08616678]
[1768297685197,1.08352385,3139.7,3138.1,1.08616678]
[1768297685398,0.89247559,3139.6,3138.1,1.08616678]
[1768297685592,0.89247559,3139.5,3138.1,1.08616678]
[1768297685898,1.08352385,3139.7,3138.1,1.08616678]
[1768297686087,0.8924755,3139.6,3138.1,1.08616678]
[1768297686287,0.89214148,3139.5,3138.1,0.00264293]
[1768297686491,0.89214148,3139.4,3138.1,0.00264293]
[1768297686696,0.89214148,3139.3,3138.1,0.00264293]
[1768297686896,1.08352385,3139.8,3138.1,0.00264293]
[1768297687100,0.89213635,3139.7,3138.6,1.08352385]
[1768297687398,1.08392097,3139.8,3138.9,1.08392097]
[1768297687598,0.89202567,3139.7,3138.9,1.08392097]
[1768297687792,1.08392097,3139.8,3138.9,1.08392097]
[1768297687993,0.89202495,3139.7,3138.9,1.08392097]
[1768297688299,1.24332097,3139.9,3138.9,1.08392097]
[1768297688591,0.89189547,3139.8,3138.9,1.08392097]
[1768297688795,1.24332097,3139.9,3138.4,1.31]
[1768297689000,0.89189134,3139.8,3138.8,1.08392097]
[1768297689294,2.92888944,3140.6,3139.6,1.08392097]
[1768297689497,1.97598012,3140.5,3139.6,1.08392097]
[1768297689696,0.89205915,3140.4,3139.1,2.67551276]
[1768297689898,1.08392097,3140.3,3139.2,1.08392097]
[1768297690098,1.08392097,3140.3,3139.4,1.08392097]
[1768297690296,1.08392097,3140.3,3139.0,1.31]
[1768297690597,1.08392097,3140.3,3139.4,1.08392097]
[1768297692901,1.08392097,3140.3,3139.3,1.08392097]
[1768297693100,1.08392097,3140.1,3139.0,1.08392097]
[1768297693605,1.08392097,3140.1,3139.2,1.08392097]
[1768297695103,1.08392097,3140.3,3139.2,1.08392097]
[1768297695401,1.08392097,3140.3,3139.4,1.08392097]
[1768297695602,1.08392097,3140.5,3139.4,1.08392097]
[1768297695902,1.08392097,3140.3,3139.4,1.08392097]
[1768297697203,3.85345041,3140.6,3139.6,1.08392097]
[1768297697400,0.89164555,3140.5,3139.6,1.08392097]
[1768297697599,3.85345041,3140.6,3139.6,1.08392097]
[1768297697600,0.89164555,3140.4,3139.6,1.08392097]
[1768297697805,3.85345041,3140.6,3139.6,1.08392097]
[1768297698004,0.89162992,3140.5,3139.6,1.08392097]
[1768297698303,3.85345041,3140.6,3139.6,1.08392097]
[1768297698505,0.89169081,3140.5,3139.6,1.08392097]
[1768297698704,3.85345041,3140.6,3139.6,1.08392097]
[1768297698907,0.89166012,3140.5,3139.6,1.08392097]
[1768297699105,3.85345041,3140.6,3139.6,1.08392097]
[1768297699304,0.89127585,3140.5,3139.6,1.08392097]
[1768297699506,3.85345041,3140.6,3139.6,1.08392097]
[1768297699700,2.7907377,3141.1,3140.4,1.08392097]
[1768297699905,1.97538586,3141.0,3140.4,0.00297067]
[1768297700106,0.89146489,3140.9,3140.4,0.00297067]
[1768297700304,1.08392097,3140.8,3140.4,0.00297067]
[1768297701303,3.87465867,3140.9,3140.4,0.00297067]
[1768297701508,1.08392097,3140.5,3139.6,1.08392097]
[1768297702606,1.08392097,3140.5,3139.6,1.08772539]
[1768297703602,1.08392097,3140.7,3139.8,1.08392097]
[1768297704402,2.7907377,3141.0,3139.8,1.08392097]
[1768297704607,1.08392097,3140.8,3139.8,1.08392097]
[1768297704907,1.08392097,3140.6,3139.8,1.08392097]
[1768297706106,3.87465867,3141.0,3139.8,1.08392097]
[1768297706308,1.08392097,3140.6,3139.8,1.08392097]
[1768297706809,1.08392097,3140.6,3139.7,1.08392097]
[1768297707308,1.08392097,3140.6,3139.6,0.00380442]
[1768297707706,1.08392097,3140.6,3139.6,1.08772539]
[1768297708210,2.7907377,3141.0,3139.6,1.08772539]
[1768297708414,1.08392097,3140.6,3139.6,1.08772539]
[1768297709815,3.87465867,3141.0,3139.6,1.08772539]
[1768297710014,1.08392097,3140.6,3139.6,1.08772539]
[1768297710516,1.08392097,3140.4,3139.6,0.00380442]
[1768297711812,1.08392097,3140.2,3139.6,0.00380442]
[1768297712018,1.08392097,3140.2,3138.8,2.7747139]
[1768297712214,1.08392097,3140.0,3139.0,1.08392097]
[1768297712917,1.08392097,3140.0,3139.0,1.08725133]
[1768297713414,1.08392097,3140.2,3139.2,1.08392097]
[1768297713720,1.08392097,3140.0,3139.0,1.08725133]
[1768297714514,1.08392097,3140.0,3139.1,1.08392097]
[1768297714724,1.08392097,3140.0,3139.0,1.08725133]
[1768297716423,1.08392097,3139.8,3139.0,0.00333036]
[1768297716625,1.08392097,3139.8,3139.0,1.08725133]
[1768297717319,1.08392097,3140.0,3139.0,1.08725133]
[1768297718119,0.15936,3140.6,3139.4,1.08392097]
[1768297718419,1.08392097,3140.4,3139.4,1.08392097]
[1768297718617,0.89362234,3140.3,3139.4,1.08392097]
[1768297718821,3.03205494,3141.9,3140.2,4.12092655]
[1768297719017,1.08392097,3141.8,3140.9,1.08392097]
[1768297719218,3.03205494,3141.9,3140.3,3.03700558]
[1768297719419,1.08392097,3141.4,3140.4,1.08392097]
[1768297720216,1.08778747,3141.4,3140.4,1.08392097]
[1768297721026,0.0038665,3141.4,3140.4,1.08392097]
[1768297721427,0.0038665,3141.4,3139.8,3.03700558]
[1768297721729,0.0038665,3141.4,3139.9,1.311]
[1768297723723,0.0038665,3141.4,3139.8,3.03700558]
[1768297723925,3.03205494,3141.3,3139.8,3.03700558]
[1768297724232,3.92443201,3141.2,3139.6,4.49873583]
[1768297724418,0.0038665,3141.4,3139.7,3.03700558]
[1768297724738,0.89237995,3141.3,3139.7,3.03700558]
[1768297725028,0.0038665,3141.4,3139.7,3.03700558]
[1768297725329,0.0038665,3141.4,3140.0,3.03700558]
[1768297726129,0.0038665,3141.4,3140.2,4.49873583]
[1768297726321,0.0038665,3141.4,3140.2,5.80973583]
[1768297726831,0.0038665,3141.4,3140.2,4.34800558]
[1768297727930,0.0038665,3141.4,3140.3,3.03700558]
[1768297731324,0.0038665,3141.4,3139.5,3.00549978]
[1768297731534,1.46173025,3141.3,3139.7,3.03700558]
[1768297732240,1.46173025,3141.3,3139.8,1.312]
[1768297733327,1.46173025,3141.3,3139.7,3.03700558]
[1768297733528,0.89165416,3141.2,3139.8,1.312]
[1768297733729,3.03205494,3141.2,3139.8,1.312]
[1768297735431,0.0038665,3141.4,3139.8,5.81073583]
[1768297735735,0.89168011,3141.3,3139.9,3.03700558]
[1768297736038,0.0038665,3141.4,3139.9,3.03700558]
[1768297736229,0.89168447,3141.3,3139.9,3.03700558]
[1768297736428,0.0038665,3141.4,3139.9,3.03700558]
[1768297736631,0.89168859,3141.3,3139.9,3.03700558]
[1768297736829,0.0038665,3141.4,3139.9,3.03700558]
[1768297737029,0.89168431,3141.3,3139.9,3.03700558]
[1768297737230,0.0038665,3141.4,3139.9,3.03700558]
[1768297737428,0.89168668,3141.3,3139.9,3.03700558]
[1768297737630,0.0038665,3141.4,3139.9,3.03700558]
[1768297737932,0.89168673,3141.3,3139.9,3.03700558]
[1768297738127,0.0038665,3141.4,3139.9,3.03700558]
[1768297738328,0.8916973,3141.3,3139.9,3.03700558]
[1768297738530,0.0038665,3141.4,3139.9,3.03700558]
[1768297738728,0.8917385,3141.3,3139.9,3.03700558]
[1768297738935,0.0038665,3141.4,3139.9,3.03700558]
[1768297739237,0.89173769,3141.3,3140.0,1.312]
[1768297739425,0.0038665,3141.4,3140.0,1.312]
[1768297739628,0.89175561,3141.3,3140.0,1.312]
[1768297739836,0.0038665,3141.4,3140.0,1.312]
[1768297740031,0.89175564,3141.3,3139.9,3.03700558]
[1768297740234,2.35345443,3141.2,3139.8,1.312]
[1768297740434,1.46173025,3141.2,3139.5,3.03700558]
[1768297740733,3.03205494,3141.1,3139.5,3.03700558]
[1768297741038,1.46173025,3140.9,3139.1,3.03700558]
[1768297741239,0.89156393,3140.8,3139.1,3.03700558]
[1768297741537,1.0834777,3140.4,3139.5,1.0834777]
[1768297741732,0.49830311,3140.3,3139.2,1.0834777]
[1768297741931,0.49830311,3140.2,3139.3,1.0834777]
[1768297743032,0.49830311,3140.2,3139.5,1.0834777]
[1768297743230,0.49830311,3140.1,3139.5,1.0834777]
[1768297743440,0.49830311,3140.0,3139.1,3.03700558]
[1768297743641,0.49830311,3139.9,3139.1,3.03700558]
[1768297743835,0.49830311,3139.8,3139.1,3.03700558]
[1768297744040,0.49830311,3139.7,3139.1,3.03700558]
[1768297744242,0.49830311,3139.6,3139.1,3.03700558]
[1768297744435,3.03205494,3140.8,3139.1,3.03700558]
[1768297744740,0.89240119,3140.7,3139.1,4.34900558]
[1768297744943,3.03205494,3140.8,3139.1,4.34900558]
[1768297745138,0.89240119,3140.7,3139.1,4.34900558]
[1768297745331,3.03205494,3140.8,3139.1,4.34900558]
[1768297745531,0.89250252,3140.7,3139.1,4.34900558]
[1768297745732,3.03205494,3140.8,3139.1,4.34900558]
[1768297745940,0.89250185,3140.7,3139.1,4.34900558]
[1768297746132,3.03205494,3140.8,3139.1,4.34900558]
[1768297746335,0.89257942,3140.7,3139.2,3.42089874]
[1768297746532,3.03205494,3140.8,3139.2,3.42089874]
[1768297746736,0.89258024,3140.7,3139.2,3.42089874]
[1768297746935,3.03205494,3140.8,3139.2,3.42089874]
[1768297747131,0.89258117,3140.7,3139.2,3.42089874]
[1768297747339,3.03205494,3140.8,3139.2,3.42089874]
[1768297747535,0.89272305,3140.7,3139.2,3.42089874]
[1768297747840,3.03205494,3140.8,3139.2,3.42089874]
[1768297748040,0.89272324,3140.7,3139.2,3.42089874]
[1768297748336,0.89272324,3140.6,3139.2,3.42089874]
[1768297748536,1.46269398,3140.6,3139.2,3.42089874]
[1768297749440,3.19140494,3140.8,3139.2,3.42089874]
[1768297749633,0.89218668,3140.7,3139.2,3.42089874]
[1768297749833,0.89218668,3140.6,3139.2,3.42089874]
[1768297750033,3.19140494,3140.8,3139.2,3.42089874]
[1768297750233,0.89210098,3140.7,3139.2,3.42089874]
[1768297750441,0.89210098,3140.6,3139.2,3.42089874]
[1768297750642,3.19140494,3140.8,3139.2,3.42089874]
[1768297750830,0.89194146,3140.7,3139.2,3.42089874]
[1768297751033,0.89194146,3140.6,3139.2,3.42089874]
[1768297751234,3.19140494,3140.8,3139.2,3.42089874]
[1768297751534,0.89177495,3140.7,3139.2,3.42089874]
[1768297751845,0.89177495,3140.6,3139.2,3.42089874]
[1768297752040,3.19140494,3140.8,3139.2,3.42089874]
[1768297752241,0.89110166,3140.7,3139.2,3.42089874]
[1768297752442,0.89110166,3140.6,3139.2,3.42089874]
[1768297752642,3.19140494,3140.8,3139.2,3.42089874]
[1768297752944,0.89138956,3140.7,3139.2,3.42089874]
[1768297753146,0.89138956,3140.6,3139.2,3.42089874]
[1768297753335,3.19140494,3140.8,3139.2,3.42089874]
[1768297753536,4.46909256,3140.7,3139.2,3.42089874]
[1768297753737,0.8915143,3140.6,3139.2,3.42089874]
[1768297754644,0.8915143,3140.6,3139.0,0.00333036]
[1768297755046,4.33765109,3140.6,3139.0,0.00333036]
[1768297755344,0.1631865,3141.4,3139.1,3.56950638]
[1768297755551,0.89185637,3141.3,3139.7,3.56950638]
[1768297755752,0.89185637,3141.2,3139.7,3.56950638]
[1768297755946,0.89185637,3141.1,3139.7,3.56950638]
[1768297756144,3.60932329,3141.4,3139.7,3.56950638]
[1768297756450,1.39034329,3141.3,3139.7,3.56950638]
[1768297756651,1.39034329,3141.2,3139.7,3.56950638]
[1768297756846,1.39034329,3141.1,3139.7,3.56950638]
[1768297757047,0.4982827,3141.0,3139.7,3.56950638]
[1768297757250,0.4982827,3140.9,3139.7,3.56950638]
[1768297757455,0.4982827,3140.8,3139.3,3.56950638]
[1768297757653,0.4982827,3140.7,3139.3,3.56950638]
[1768297757954,0.4982827,3140.6,3139.3,3.56950638]
[1768297758143,0.15933,3141.2,3139.5,3.56950638]
[1768297758343,0.89275186,3141.1,3139.5,3.56950638]
[1768297758543,0.89275186,3141.0,3139.5,3.56950638]
[1768297758739,0.15933,3141.2,3139.5,3.56950638]
[1768297759051,0.89279283,3141.1,3139.5,3.56950638]
[1768297759253,0.89279283,3141.0,3139.5,3.56950638]
[1768297759557,0.15933,3141.2,3139.5,3.56950638]
[1768297759852,0.8929812,3141.1,3139.5,3.56950638]